bitfinex-derivatives/quotes_BTCF0:USTF0_20241110
["timestamp","ask_amount","ask_price","bid_price","bid_amount"]
[1731226106257,0.08080849,79018.0,79015.0,0.05062329]
[1731226107153,0.08080849,79028.0,79017.0,0.08080849]
[1731226107357,0.08080849,79028.0,79024.0,0.05058081]
[1731226107960,0.08080849,79028.0,79023.0,0.05058081]
[1731226108159,0.08080849,79024.0,79023.0,0.05057826]
[1731226108363,0.08080849,79024.0,79023.0,0.0505775]
[1731226109865,0.08080849,79024.0,79022.0,0.0505775]
[1731226110669,0.08080849,79024.0,79022.0,0.0275775]
[1731226111266,0.08080849,79024.0,79017.0,0.08080849]
[1731226111957,0.08080849,79024.0,79017.0,0.14404946]
[1731226112162,0.08080849,79024.0,79017.0,0.08080849]
[1731226113470,0.3608,79030.0,79017.0,0.08080849]
[1731226113661,0.08080849,79019.0,79015.0,0.47530426]
[1731226113862,0.08080849,79019.0,79015.0,0.47466426]
[1731226114059,0.08080849,79019.0,79015.0,0.41142329]
[1731226114368,0.08080849,79019.0,79015.0,0.05062329]
[1731226119466,0.08080849,79016.0,79015.0,0.05062329]
[1731226121869,0.0476,79023.0,79017.0,0.01919151]
[1731226122064,0.08080849,79018.0,79017.0,0.01919151]
[1731226125771,0.08080849,79018.0,79015.0,0.0468148]
[1731226132982,0.08080849,79018.0,79015.0,0.09743809]
[1731226140589,0.08080849,79018.0,79015.0,0.16065505]
[1731226140889,0.08080849,79018.0,79015.0,0.13765505]
[1731226143792,0.12840849,79023.0,79017.0,0.08080849]
[1731226143989,0.36152,79031.0,79021.0,0.08080849]
[1731226144190,0.3608,79031.0,79021.0,0.08080849]
[1731226144702,0.08080849,79028.0,79021.0,0.08080849]
[1731226145396,0.3608,79031.0,79023.0,0.42401696]
[1731226145589,0.3608,79031.0,79027.0,0.08080849]
[1731226147597,0.08080849,79030.0,79024.0,0.0438]
[1731226147901,0.08080849,79026.0,79024.0,0.0438]
[1731226148102,0.08080849,79026.0,79023.0,0.36152]
[1731226148295,0.08080849,79026.0,79023.0,0.3608]
[1731226149001,0.08080849,79026.0,79022.0,0.0468]
[1731226149204,0.08080849,79026.0,79023.0,0.3608]
[1731226149407,0.08080849,79026.0,79022.0,0.0468]
[1731226149701,0.08080849,79026.0,79022.0,0.11024898]
[1731226149895,0.08080849,79026.0,79022.0,0.0468]
[1731226150495,0.08080849,79030.0,79024.0,0.08080849]
[1731226150897,0.08080849,79034.0,79028.0,0.08080849]
[1731226153712,0.00189842,79035.0,79028.0,0.08080849]
[1731226154110,0.08080849,79034.0,79028.0,0.08080849]
[1731226154896,0.08080849,79034.0,79027.0,0.08080849]
[1731226156004,0.00189842,79035.0,79027.0,0.05780849]
[1731226156208,0.08270691,79035.0,79027.0,0.05780849]
[1731226156409,0.08270691,79035.0,79027.0,0.10490849]
[1731226160403,0.08080849,79031.0,79027.0,0.0471]
[1731226161114,0.00189842,79035.0,79030.0,0.08080849]
[1731226162618,0.00189842,79035.0,79027.0,0.0471]
[1731226162818,0.00189842,79035.0,79030.0,0.08080849]
[1731226163207,0.00189842,79035.0,79033.0,0.3608]
[1731226163507,0.00189842,79035.0,79034.0,0.08080849]
[1731226163707,0.00189842,79035.0,79034.0,0.12530849]
[1731226164606,0.0454,79050.0,79034.0,0.12530849]
[1731226164607,0.0454,79050.0,79034.0,0.20611698]
[1731226164807,0.08080849,79056.0,79040.0,0.3608]
[1731226165008,0.08080849,79056.0,79047.0,0.08080849]
[1731226165809,0.08080849,79051.0,79041.0,0.044]
[1731226166111,0.08080849,79051.0,79045.0,0.08080849]
[1731226166311,0.08080849,79051.0,79041.0,0.044]
[1731226166511,0.08080849,79043.0,79041.0,0.044]
[1731226166915,0.08080849,79043.0,79034.0,0.10651924]
[1731226167120,0.08080849,79035.0,79034.0,0.10651924]
[1731226167308,0.3608,79045.0,79034.0,0.10651924]
[1731226167309,0.08080849,79039.0,79034.0,0.10651924]
[1731226168117,0.17230849,79044.0,79035.0,0.08080849]
[1731226168309,0.0915,79044.0,79039.0,0.08080849]
[1731226168614,0.36159506,79053.0,79039.0,0.08080849]
[1731226168806,0.08080849,79050.0,79039.0,0.08080849]
[1731226169209,0.08080849,79050.0,79040.0,0.4049]
[1731226169408,0.08080849,79050.0,79043.0,0.08080849]
[1731226170812,0.08080849,79050.0,79042.0,0.08080849]
[1731226172510,0.08080849,79050.0,79047.0,0.3608]
[1731226173725,0.08080849,79050.0,79044.0,0.05044881]
[1731226174519,0.08080849,79050.0,79042.0,0.08080849]
[1731226174520,0.08080849,79050.0,79045.0,0.05044881]
[1731226174922,0.08080849,79046.0,79045.0,0.05044881]
[1731226175312,0.08080849,79046.0,79044.0,0.05044881]
[1731226176325,0.08080849,79046.0,79043.0,0.05044881]
[1731226176924,0.08080849,79046.0,79042.0,0.05044881]
[1731226177126,0.08080849,79046.0,79043.0,0.05044881]
[1731226177523,0.08080849,79046.0,79042.0,0.05044881]
[1731226177719,0.08080849,79046.0,79043.0,0.05044881]
[1731226178117,0.08080849,79046.0,79042.0,0.05044881]
[1731226178319,0.08080849,79050.0,79044.0,0.05044881]
[1731226178528,0.08080849,79050.0,79047.0,0.3608]
[1731226185831,0.08080849,79050.0,79047.0,0.3378]
[1731226189431,0.08080849,79050.0,79043.0,0.02530431]
[1731226189729,0.08080849,79044.0,79043.0,0.02530431]
[1731226199643,0.08080849,79044.0,79043.0,0.08843606]
[1731226199851,0.08080849,79044.0,79043.0,0.02530431]
[1731226200657,0.08080849,79048.0,79043.0,0.16731755]
[1731226200850,0.08080849,79044.0,79043.0,0.06543606]
[1731226201051,0.08080849,79044.0,79043.0,0.14436731]
[1731226201450,0.08080849,79044.0,79043.0,0.10423556]
[1731226202758,0.08080849,79044.0,79043.0,0.02530431]
[1731226202960,0.08080849,79044.0,79043.0,0.10406472]
[1731226205052,0.08080849,79044.0,79043.0,0.02530431]
[1731226207658,0.08080849,79044.0,79043.0,0.10404]
[1731226210552,0.04491506,79053.0,79043.0,0.10404]
[1731226210553,0.08080849,79048.0,79043.0,0.10411073]
[1731226210858,0.08080849,79048.0,79044.0,0.12659575]
[1731226211061,0.08080849,79048.0,79045.0,0.07879575]
[1731226211262,0.04491506,79053.0,79046.0,0.07879575]
[1731226211456,0.08080849,79046.0,79044.0,0.0478]
[1731226211650,0.08080849,79046.0,79045.0,0.07877425]
[1731226212453,0.08080849,79046.0,79045.0,0.07878733]
[1731226215368,0.08080849,79050.0,79045.0,0.07878733]
[1731226215569,0.08080849,79050.0,79044.0,0.0478]
[1731226215763,0.08080849,79050.0,79046.0,0.08080849]
[1731226215971,0.08080849,79050.0,79047.0,0.10316975]
[1731226216155,0.08080849,79050.0,79048.0,0.07876975]
[1731226216360,0.08080849,79050.0,79047.0,0.0244]
[1731226216559,0.08080849,79050.0,79048.0,0.07864333]
[1731226216770,0.08080849,79050.0,79047.0,0.0244]
[1731226216965,0.08080849,79050.0,79048.0,0.07864296]
[1731226217164,0.00011506,79053.0,79043.0,0.02530431]
[1731226217165,0.08080849,79049.0,79043.0,0.02530431]
[1731226217361,0.08080849,79045.0,79044.0,0.07879069]
[1731226217561,0.08080849,79045.0,79043.0,0.02530431]
[1731226220759,0.08080849,79045.0,79044.0,0.07883527]
[1731226221070,0.08080849,79045.0,79043.0,0.02530431]
[1731226222070,0.08080849,79045.0,79044.0,0.07884579]
[1731226222765,0.08080849,79045.0,79044.0,0.0787552]
[1731226223469,0.08080849,79045.0,79043.0,0.02530431]
[1731226224171,0.08080849,79045.0,79044.0,0.07873936]
[1731226224363,0.08080849,79045.0,79043.0,0.02530431]
[1731226225669,0.08080849,79045.0,79044.0,0.07873816]
[1731226226065,0.08080849,79045.0,79043.0,0.02530431]
[1731226226263,0.08080849,79045.0,79044.0,0.07872777]
[1731226226576,0.08080849,79045.0,79044.0,0.07872843]
[1731226227165,0.08080849,79045.0,79043.0,0.02530431]
[1731226227774,0.08080849,79045.0,79044.0,0.07872311]
[1731226228071,0.08080849,79045.0,79043.0,0.02530431]
[1731226229469,0.08080849,79044.0,79042.0,0.00064]
[1731226229666,0.08080849,79044.0,79031.0,0.00189788]
[1731226229667,0.12860849,79044.0,79043.0,0.05055569]
[1731226229867,0.20941698,79044.0,79042.0,0.05055569]
[1731226230077,0.16161698,79043.0,79042.0,0.05055569]
[1731226230375,0.16161698,79043.0,79040.0,0.03792561]
[1731226230677,0.16161698,79043.0,79038.0,0.03792561]
[1731226230678,0.08080849,79041.0,79038.0,0.03792561]
[1731226230865,0.44160849,79039.0,79038.0,0.03790951]
[1731226231064,0.44160849,79039.0,79035.0,0.02755569]
[1731226231267,0.0455,79038.0,79035.0,0.02755569]
[1731226231469,0.0455,79038.0,79037.0,0.03789741]
[1731226231665,0.12630849,79038.0,79031.0,0.06463774]
[1731226231869,0.08080849,79032.0,79031.0,0.06463774]
[1731226232781,0.03020313,79032.0,79031.0,0.06463774]
[1731226234879,0.08080849,79035.0,79031.0,0.06463774]
[1731226235775,0.0455,79038.0,79031.0,0.06463774]
[1731226235776,0.08080849,79032.0,79031.0,0.06463774]
[1731226241378,0.08080849,79032.0,79031.0,0.10249264]
[1731226241578,0.08080849,79032.0,79031.0,0.06463774]
[1731226241781,0.3608,79034.0,79031.0,0.14544623]
[1731226241979,0.08080849,79032.0,79031.0,0.06463774]
[1731226245885,0.08080849,79032.0,79029.0,0.0447]
[1731226248974,0.08080849,79032.0,79028.0,0.02531289]
[1731226249288,0.08080849,79029.0,79028.0,0.02531289]
[1731226255391,0.08080849,79029.0,79028.0,0.08849537]
[1731226256485,0.08080849,79029.0,79028.0,0.16761535]
[1731226256684,0.08080849,79029.0,79028.0,0.02531289]
[1731226257091,0.08080849,79029.0,79028.0,0.08849537]
[1731226257484,0.08080849,79029.0,79028.0,0.10443569]
[1731226258589,0.08080849,79029.0,79028.0,0.46523569]
[1731226258785,0.0453,79037.0,79028.0,0.46523569]
[1731226258786,0.08080849,79033.0,79028.0,0.46523569]
[1731226258987,0.08080849,79033.0,79032.0,0.06317963]
[1731226259190,0.08080849,79033.0,79032.0,0.0791228]
[1731226260297,0.08080849,79033.0,79032.0,0.06321875]
[1731226260996,0.08080849,79033.0,79032.0,0.11938588]
[1731226261294,0.08080849,79033.0,79032.0,0.11938593]
[1731226261681,0.08080849,79033.0,79032.0,0.04021875]
[1731226263892,0.08080849,79033.0,79032.0,0.11922402]
[1731226267095,0.08080849,79033.0,79028.0,0.02531289]
[1731226267297,0.08080849,79033.0,79029.0,0.07894169]
[1731226267602,0.08080849,79033.0,79030.0,0.07894169]
[1731226267797,0.08080849,79033.0,79031.0,0.07894169]
[1731226267999,0.12610849,79037.0,79032.0,0.07894169]
[1731226268198,0.08080849,79033.0,79029.0,0.08080849]
[1731226268389,0.08080849,79033.0,79030.0,0.07888357]
[1731226268590,0.08080849,79033.0,79031.0,0.07888357]
[1731226268897,0.08080849,79033.0,79032.0,0.07888357]
[1731226269495,0.3608,79038.0,79032.0,0.07888357]
[1731226269691,0.0432,79049.0,79036.0,0.0757581]
[1731226269692,0.12400849,79049.0,79036.0,0.0757581]
[1731226269892,0.18080849,79045.0,79039.0,0.08080849]
[1731226270087,0.18080849,79045.0,79040.0,0.07888357]
[1731226270393,0.18080849,79045.0,79041.0,0.07888357]
[1731226270694,0.18080849,79045.0,79039.0,0.08080849]
[1731226270894,0.18080849,79045.0,79040.0,0.07851388]
[1731226271096,0.18080849,79045.0,79041.0,0.07851388]
[1731226271398,0.18080849,79045.0,79039.0,0.08080849]
[1731226271598,0.18080849,79045.0,79040.0,0.07848786]
[1731226271796,0.18080849,79045.0,79039.0,0.08080849]
[1731226271997,0.18080849,79045.0,79040.0,0.07848777]
[1731226272302,0.18080849,79045.0,79039.0,0.08080849]
[1731226272789,0.18080849,79045.0,79042.0,0.08080849]
[1731226273601,0.18080849,79045.0,79039.0,0.14346999]
[1731226273895,0.08080849,79041.0,79039.0,0.14346999]
[1731226274100,0.08080849,79041.0,79039.0,0.0626615]
[1731226275903,0.08080849,79041.0,79039.0,0.0396615]
[1731226278406,0.08080849,79041.0,79040.0,0.09864]
[1731226279303,0.08080849,79044.0,79040.0,0.09864]
[1731226282003,0.08080849,79044.0,79042.0,0.08080849]
[1731226282707,0.1,79045.0,79042.0,0.08080849]
[1731226290899,0.1,79045.0,79041.0,0.06309055]
[1731226291100,0.1,79045.0,79041.0,0.14389904]
[1731226291501,0.1,79045.0,79042.0,0.06309055]
[1731226292411,0.1,79045.0,79041.0,0.08080849]
[1731226292412,0.1,79045.0,79041.0,0.14389904]
[1731226293304,0.1,79045.0,79043.0,0.06309055]
[1731226293619,0.1,79045.0,79044.0,0.14134787]
[1731226293810,0.1,79045.0,79044.0,0.07825732]
[1731226295116,0.06355162,79056.0,79044.0,0.15401542]
[1731226295415,0.06355162,79056.0,79052.0,0.08080849]
[1731226296509,0.0455,79060.0,79052.0,0.08080849]
[1731226297815,0.00638489,79076.0,79052.0,0.23948011]
[1731226298012,0.08080849,79068.0,79052.0,0.15867162]
[1731226298209,0.08080849,79068.0,79060.0,0.08080849]
[1731226298411,0.08080849,79068.0,79060.0,0.17944849]
[1731226298918,0.00015923,79067.0,79064.0,0.13122792]
[1731226299317,0.00015923,79067.0,79064.0,0.08080849]
[1731226300215,0.00015923,79067.0,79066.0,0.3608]
[1731226301421,0.00015923,79067.0,79065.0,0.11858968]
[1731226301915,0.00015923,79067.0,79066.0,0.08080849]
[1731226302809,0.12610849,79086.0,79066.0,0.23859221]
[1731226303013,0.12610849,79086.0,79081.0,0.0377445]
[1731226303317,0.08080849,79083.0,79080.0,0.0377445]
[1731226303819,0.00014265,79082.0,79080.0,0.0377445]
[1731226304421,0.00014265,79082.0,79079.0,0.08080849]
[1731226305621,0.00014265,79082.0,79079.0,0.11855299]
[1731226305921,0.00014265,79082.0,79079.0,0.09555299]
[1731226306123,0.00014265,79082.0,79079.0,0.05780849]
[1731226306317,0.00014265,79082.0,79079.0,0.09555299]
[1731226307224,0.00014265,79082.0,79079.0,0.05780849]
[1731226310125,0.3608,79095.0,79081.0,0.16161698]
[1731226310317,0.0892,79098.0,79094.0,0.08080849]
[1731226310518,0.0892,79098.0,79095.0,0.09848]
[1731226311126,0.00012032,79097.0,79095.0,0.09848]
[1731226312326,0.00012032,79097.0,79096.0,0.08080849]
[1731226312529,0.00012032,79097.0,79096.0,0.44160849]
[1731226314731,0.00012032,79097.0,79096.0,0.3608]
[1731226315333,0.00012032,79097.0,79096.0,0.42440222]
[1731226315826,0.00012032,79097.0,79096.0,0.06360222]
[1731226316031,0.08092881,79097.0,79083.0,0.3608]
[1731226316225,0.08080849,79084.0,79083.0,0.3608]
[1731226316426,0.08080849,79084.0,79083.0,0.09848]
[1731226316625,0.08080849,79084.0,79081.0,0.02528915]
[1731226316831,0.08080849,79084.0,79082.0,0.09848]
[1731226317035,0.08080849,79084.0,79081.0,0.12376915]
[1731226317733,0.08080849,79084.0,79081.0,0.02528915]
[1731226318823,0.08080849,79084.0,79078.0,0.06586571]
[1731226319131,0.16161698,79079.0,79078.0,0.00189679]
[1731226319632,0.46016849,79079.0,79074.0,0.12341038]
[1731226319825,0.08080849,79075.0,79074.0,0.12341038]
[1731226320930,0.08080849,79075.0,79068.0,0.06319174]
[1731226321130,0.08080849,79069.0,79060.0,0.08080849]
[1731226321334,0.12287848,79074.0,79059.0,0.09848]
[1731226322038,0.12287848,79074.0,79061.0,0.03770731]
[1731226322731,0.3608,79073.0,79061.0,0.03770731]
[1731226323128,0.12287848,79062.0,79061.0,0.03770731]
[1731226323840,0.12299818,79062.0,79061.0,0.03770731]
[1731226325538,0.62531666,79062.0,79061.0,0.03770731]
[1731226325725,0.62531666,79062.0,79056.0,0.05027641]
[1731226325726,0.50243818,79062.0,79056.0,0.05027641]
[1731226325926,0.48367848,79057.0,79056.0,0.05027641]
[1731226326929,0.48367848,79057.0,79047.0,0.000118]
[1731226327129,0.3608,79048.0,79047.0,0.000118]
[1731226328133,0.74032,79048.0,79047.0,0.000118]
[1731226330245,0.3608,79048.0,79047.0,0.000118]
[1731226330443,0.4592,79048.0,79047.0,0.000118]
[1731226334846,0.83872,79048.0,79047.0,0.000118]
[1731226336142,0.4592,79048.0,79026.0,0.1727]
[1731226336342,0.3608,79035.0,79026.0,0.1727]
[1731226337648,0.3101972,79035.0,79026.0,0.23701866]
[1731226341646,0.12287848,79037.0,79026.0,0.23701866]
[1731226342443,0.12287848,79031.0,79026.0,0.23701866]
[1731226342645,0.12287848,79031.0,79026.0,0.13861866]
[1731226343044,0.12287848,79031.0,79026.0,0.08811625]
[1731226343944,9.972e-05,79030.0,79026.0,0.08811625]
[1731226345957,0.00373247,79028.0,79026.0,0.08811625]
[1731226346451,0.00373247,79028.0,79026.0,0.05061625]
[1731226346856,0.00373247,79027.0,79026.0,0.05061625]
[1731226350848,0.00373247,79027.0,79026.0,0.02761625]
[1731226365066,0.00373247,79027.0,79026.0,0.09043319]
[1731226365460,0.08446361,79027.0,79026.0,0.09043319]
[1731226365860,0.08446361,79027.0,79026.0,0.06743319]
[1731226366466,0.08446361,79027.0,79026.0,0.00461625]
[1731226374768,0.08446361,79027.0,79026.0,0.05516619]
[1731226375461,0.08446361,79027.0,79026.0,0.00461625]
[1731226377464,0.08446361,79027.0,79026.0,0.05523442]
[1731226377765,0.08446361,79027.0,79026.0,0.05523486]
[1731226377971,0.16519475,79027.0,79026.0,0.05523486]
[1731226379771,0.08446361,79027.0,79026.0,0.05523486]
[1731226380171,0.16519475,79027.0,79026.0,0.05523486]
[1731226380966,0.16519475,79027.0,79026.0,0.03223486]
[1731226381473,0.16519475,79027.0,79023.0,0.06371826]
[1731226381669,0.16519475,79027.0,79018.0,0.00010127]
[1731226381972,0.08073114,79019.0,79018.0,0.00010127]
[1731226382965,0.08446361,79019.0,79018.0,0.00010127]
[1731226383165,0.08446361,79019.0,79018.0,0.0646877]
[1731226383365,0.08446361,79019.0,79018.0,0.00010127]
[1731226384868,0.08446361,79019.0,79018.0,0.07912201]
[1731226386373,0.08446361,79019.0,79018.0,0.00010127]
[1731226389878,0.08446361,79019.0,79018.0,0.07913524]
[1731226396181,0.08446361,79019.0,79018.0,0.14206377]
[1731226396582,0.08446361,79019.0,79018.0,0.07869396]
[1731226397381,0.08446361,79019.0,79018.0,0.07850758]
[1731226399881,0.08446361,79019.0,79016.0,0.13556871]
[1731226400089,0.08446361,79019.0,79017.0,0.07784469]
[1731226400391,0.08446361,79019.0,79018.0,0.07784195]
[1731226400776,0.08446361,79019.0,79016.0,0.13556871]
[1731226400982,0.08446361,79019.0,79017.0,0.07783458]
[1731226400983,0.00373247,79018.0,79017.0,0.07783458]
[1731226402388,0.00373247,79018.0,79017.0,0.07782395]
[1731226405786,0.00373247,79018.0,79016.0,0.13556871]
[1731226405985,0.00373247,79017.0,79016.0,0.13556871]
[1731226406188,0.00373247,79017.0,79016.0,0.21345326]
[1731226407289,0.00373247,79017.0,79016.0,0.21343937]
[1731226410791,9.972e-05,79030.0,79016.0,0.21343937]
[1731226410989,9.972e-05,79030.0,79029.0,0.08073114]
[1731226411390,9.972e-05,79030.0,79029.0,0.15815746]
[1731226411586,9.972e-05,79030.0,79029.0,0.08073114]
[1731226412291,9.972e-05,79030.0,79028.0,0.08073114]
[1731226413687,0.08083086,79030.0,79026.0,0.035]
[1731226413995,0.08083086,79030.0,79020.0,0.3608]
[1731226414196,0.08073114,79022.0,79021.0,0.077205]
[1731226414493,0.08073114,79022.0,79020.0,0.3608]
[1731226414701,0.08073114,79024.0,79016.0,0.0729]
[1731226414889,9.972e-05,79030.0,79017.0,0.07742757]
[1731226415085,0.08073114,79020.0,79018.0,0.07742757]
[1731226415290,0.08073114,79020.0,79016.0,0.0729]
[1731226415592,0.08073114,79020.0,79017.0,0.07748886]
[1731226415789,0.08073114,79020.0,79016.0,0.0729]
[1731226415990,0.08073114,79020.0,79017.0,0.07746106]
[1731226416190,0.08073114,79024.0,79016.0,0.13759491]
[1731226416389,0.08073114,79024.0,79020.0,0.3608]
[1731226417690,0.08073114,79028.0,79020.0,0.3608]
[1731226419301,0.08073114,79028.0,79022.0,0.08073114]
[1731226421802,9.972e-05,79030.0,79022.0,0.08073114]
[1731226422998,9.972e-05,79030.0,79020.0,0.3608]
[1731226422999,9.972e-05,79030.0,79027.0,0.08073114]
[1731226423997,9.972e-05,79030.0,79023.0,0.08073114]
[1731226427403,9.972e-05,79030.0,79023.0,0.14390624]
[1731226427699,9.972e-05,79030.0,79023.0,0.08073114]
[1731226428303,9.972e-05,79030.0,79023.0,0.14390624]
[1731226428703,9.972e-05,79030.0,79023.0,0.08073114]
[1731226429903,9.972e-05,79030.0,79023.0,0.14390624]
[1731226430798,0.08073114,79025.0,79023.0,0.0631751]
[1731226430999,0.08073114,79025.0,79021.0,0.0991751]
[1731226431198,0.08073114,79025.0,79021.0,0.036]
[1731226432306,0.08073114,79025.0,79020.0,0.4246151]
[1731226432509,0.08073114,79025.0,79020.0,0.4239751]
[1731226436204,0.08073114,79025.0,79021.0,0.0631751]
[1731226439003,0.08073114,79025.0,79020.0,0.4239751]
[1731226439211,0.08073114,79021.0,79020.0,0.4239751]
[1731226439405,0.08073114,79021.0,79020.0,0.50180387]
[1731226439612,0.08073114,79021.0,79020.0,0.50184776]
[1731226439803,0.08073114,79021.0,79020.0,0.06321899]
[1731226439998,0.08073114,79021.0,79020.0,0.14106199]
[1731226440205,0.08073114,79021.0,79020.0,0.06321899]
[1731226440405,0.08073114,79021.0,79020.0,0.14106441]
[1731226440605,0.08073114,79021.0,79020.0,0.06321899]
[1731226440911,0.08073114,79021.0,79020.0,0.14109442]
[1731226441609,0.08073114,79021.0,79020.0,0.07787543]
[1731226442209,0.08073114,79021.0,79020.0,0.1411053]
[1731226442514,0.08073114,79021.0,79020.0,0.14110562]
[1731226442711,0.08073114,79021.0,79020.0,0.14111087]
[1731226443013,0.08073114,79021.0,79020.0,0.14122509]
[1731226443217,0.08073114,79021.0,79020.0,0.06323544]
[1731226443407,0.08073114,79021.0,79020.0,0.14122132]
[1731226443813,0.08073114,79021.0,79019.0,0.06323597]
[1731226444117,0.08073114,79021.0,79016.0,0.10119491]
[1731226444118,0.08073114,79021.0,79018.0,0.06323597]
[1731226445612,0.08073114,79021.0,79016.0,0.06469491]
[1731226445815,0.08073114,79017.0,79015.0,0.07443809]
[1731226446514,0.08073114,79017.0,79015.0,0.13677377]
[1731226448913,0.08073114,79017.0,79016.0,0.05055765]
[1731226449113,0.08073114,79021.0,79016.0,0.05055761]
[1731226449313,0.3608,79025.0,79019.0,0.08073114]
[1731226449516,0.3608,79025.0,79023.0,0.03791067]
[1731226449912,0.3608,79025.0,79022.0,0.03791067]
[1731226450719,0.3608,79025.0,79024.0,0.03791067]
[1731226451719,0.3608,79025.0,79023.0,0.03790148]
[1731226455319,0.3608,79025.0,79022.0,0.03790148]
[1731226456524,0.3608,79025.0,79024.0,0.03790148]
[1731226456826,0.3608,79025.0,79023.0,0.03790148]
[1731226457026,0.3608,79025.0,79024.0,0.03790148]
[1731226458020,0.0982,79028.0,79019.0,0.13128875]
[1731226458321,0.0982,79028.0,79016.0,0.0329]
[1731226458322,0.3608,79028.0,79026.0,0.03790395]
[1731226458517,0.3608,79028.0,79027.0,0.03790395]
[1731226460823,0.3608,79028.0,79026.0,0.03790395]
[1731226462320,0.3608,79028.0,79027.0,0.03790395]
[1731226464129,0.44153114,79028.0,79027.0,0.03790395]
[1731226464331,0.0306,79029.0,79025.0,0.05055761]
[1731226466433,0.09821972,79030.0,79025.0,0.05055761]
[1731226466638,0.09821972,79030.0,79026.0,0.05055761]
[1731226466838,9.972e-05,79030.0,79025.0,0.05055761]
[1731226467046,9.972e-05,79030.0,79025.0,0.13128875]
[1731226467241,9.972e-05,79030.0,79026.0,0.05055761]
[1731226467740,0.08073114,79028.0,79026.0,0.05055761]
[1731226468239,0.08073114,79028.0,79025.0,0.05055761]
[1731226468440,0.08073114,79026.0,79025.0,0.05055761]
[1731226468744,0.08073114,79026.0,79024.0,0.05055761]
[1731226469735,0.08073114,79026.0,79023.0,0.05055761]
[1731226469940,0.08073114,79026.0,79024.0,0.05055761]
[1731226470144,0.08073114,79025.0,79023.0,0.05055761]
[1731226470338,0.3608,79028.0,79024.0,0.05055761]
[1731226470743,0.3608,79028.0,79023.0,0.05055761]
[1731226470939,0.3608,79028.0,79024.0,0.05055761]
[1731226472144,0.08073114,79025.0,79024.0,0.05055761]
[1731226472549,0.08073114,79025.0,79018.0,0.06323597]
[1731226472951,0.08073114,79025.0,79024.0,0.05057946]
[1731226473654,0.08073114,79025.0,79023.0,0.05057946]
[1731226474156,0.08073114,79025.0,79024.0,0.05057946]
[1731226475050,0.08073114,79025.0,79023.0,0.05057946]
[1731226475549,0.08073114,79025.0,79024.0,0.05057946]
[1731226477248,0.08073114,79025.0,79019.0,0.06323597]
[1731226477553,0.08073114,79020.0,79018.0,0.11385734]
[1731226478345,0.08073114,79020.0,79018.0,0.17732994]
[1731226480252,0.08073114,79020.0,79019.0,0.06323597]
[1731226480754,0.08073114,79025.0,79019.0,0.07781726]
[1731226480953,0.08073114,79025.0,79020.0,0.06322468]
[1731226481446,0.08073114,79025.0,79019.0,0.06322468]
[1731226481651,0.08073114,79025.0,79020.0,0.06322468]
[1731226482149,0.08073114,79025.0,79021.0,0.06322468]
[1731226484357,0.08073114,79024.0,79021.0,0.06322468]
[1731226484549,0.08073114,79024.0,79018.0,0.11409397]
[1731226484550,0.08073114,79025.0,79019.0,0.06322468]
[1731226484750,0.3608,79029.0,79018.0,0.17731865]
[1731226484751,0.08073114,79020.0,79018.0,0.17731865]
[1731226486250,0.08073114,79020.0,79019.0,0.06322468]
[1731226486854,0.08073114,79020.0,79018.0,0.11409397]
[1731226487259,0.3608,79029.0,79018.0,0.11409397]
[1731226487449,0.3608,79029.0,79028.0,0.03794624]
[1731226487861,0.3608,79029.0,79027.0,0.03794624]
[1731226489357,0.16146228,79028.0,79026.0,0.03794624]
[1731226489560,0.16146228,79028.0,79018.0,0.11409397]
[1731226489561,0.16146228,79027.0,79024.0,0.03794624]
[1731226489760,0.08073114,79025.0,79024.0,0.03794624]
[1731226490062,0.08073114,79025.0,79021.0,0.05059499]
[1731226490258,0.3608,79022.0,79021.0,0.05059499]
[1731226490650,0.3608,79022.0,79018.0,0.11409397]
[1731226490861,0.08073114,79019.0,79018.0,0.11409397]
[1731226496770,0.3608,79022.0,79018.0,0.11409397]
[1731226496970,0.3608,79022.0,79021.0,0.05055064]
[1731226497268,0.3608,79022.0,79018.0,0.11409397]
[1731226497269,0.3608,79023.0,79018.0,0.11409397]
[1731226497470,0.3608,79023.0,79022.0,0.05054916]
[1731226497662,0.3608,79023.0,79021.0,0.05054916]
[1731226498460,0.3608,79023.0,79022.0,0.05054916]
[1731226498663,0.16146228,79024.0,79018.0,0.11409397]
[1731226498882,0.08073114,79024.0,79021.0,0.05055333]
[1731226499068,0.08073114,79024.0,79022.0,0.05055333]
[1731226499265,0.08073114,79024.0,79021.0,0.05055333]
[1731226500562,0.08073114,79022.0,79021.0,0.05055333]
[1731226503370,0.08073114,79022.0,79018.0,0.11409397]
[1731226506168,0.08073114,79022.0,79020.0,0.05057073]
[1731226506570,0.08073114,79022.0,79019.0,0.05057073]
[1731226507268,0.08073114,79022.0,79018.0,0.1646647]
[1731226507571,0.08073114,79022.0,79019.0,0.05057073]
[1731226508172,0.08073114,79022.0,79020.0,0.05057073]
[1731226509376,0.08073114,79022.0,79019.0,0.05057073]
[1731226510070,0.08073114,79022.0,79020.0,0.05057073]
[1731226511175,0.08073114,79022.0,79021.0,0.05057073]
[1731226511569,0.08073114,79022.0,79020.0,0.05057073]
[1731226512179,0.08073114,79022.0,79018.0,0.11409397]
[1731226512180,0.08073114,79022.0,79021.0,0.05057073]
[1731226512777,0.08073114,79022.0,79020.0,0.05057073]
[1731226513576,0.08073114,79022.0,79021.0,0.05057073]
[1731226514775,0.08073114,79022.0,79020.0,0.05057073]
[1731226515174,0.08073114,79022.0,79021.0,0.05057073]
[1731226515770,0.08073114,79022.0,79018.0,0.11409397]
[1731226516073,0.08073114,79022.0,79021.0,0.0506154]
[1731226516280,0.08073114,79022.0,79018.0,0.11409397]
[1731226516480,0.08073114,79022.0,79021.0,0.05061792]
[1731226519475,0.3608,79023.0,79021.0,0.05061792]
[1731226519676,0.08073114,79022.0,79021.0,0.05061792]
[1731226520484,0.08073114,79022.0,79020.0,0.05061792]
[1731226520878,0.08073114,79022.0,79021.0,0.05061792]
[1731226521079,0.08073114,79022.0,79020.0,0.05061792]
[1731226522089,0.08073114,79021.0,79020.0,0.05061792]
[1731226525189,0.08073114,79021.0,79020.0,0.05060064]
[1731226525689,0.3608,79022.0,79019.0,0.05060023]
[1731226525882,0.08073114,79020.0,79019.0,0.05060023]
[1731226526587,0.08073114,79020.0,79018.0,0.1012216]
[1731226526775,0.08073114,79020.0,79019.0,0.05060023]
[1731226528185,0.08073114,79020.0,79018.0,0.1012216]
[1731226528492,0.08073114,79020.0,79018.0,0.05062137]
[1731226528677,0.08073114,79020.0,79018.0,0.1012216]
[1731226528987,0.08073114,79020.0,79018.0,0.05062137]
[1731226529187,0.08073114,79020.0,79018.0,0.1012216]
[1731226530082,0.08073114,79020.0,79018.0,0.05062137]
[1731226530583,0.08073114,79020.0,79018.0,0.1012216]
[1731226530977,0.08073114,79019.0,79018.0,0.05062137]
[1731226531284,0.08073114,79019.0,79017.0,0.03796125]
[1731226531489,0.08073114,79019.0,79015.0,0.11239934]
[1731226531682,0.08073114,79016.0,79015.0,0.11239934]